fUSD/lending_fUSD_20250213
["ID","MTS","AMOUNT","RATE_DAILY","PERIOD"]
[352987301,1739475082810,-500.0,0.00013945,2]
[352987302,1739475082821,-4793.31,0.00013945,2]
[352987303,1739475082833,-6850.71,0.00013945,2]
[352987304,1739475082845,-4375.28,0.00013945,2]
[352987305,1739475082857,-2576.59,0.00013945,2]
[352987306,1739475082867,-2377.35,0.00013945,2]
[352987307,1739475082878,-500.0,0.00013945,2]
[352987308,1739475082889,-500.0,0.00013945,2]
[352987309,1739475082903,-944.39,0.00013945,2]
[352987310,1739475082918,-500.0,0.00013945,2]
[352987311,1739475082933,-11994.19,0.00013945,2]
[352987312,1739475082946,-3180.17,0.00013945,2]
[352987313,1739475082960,-473.261478,0.00013945,2]
[352987314,1739475082976,-684.62,0.00013945,2]
[352987315,1739475082991,-280.670404,0.00013945,2]
[352987316,1739475083007,-722.17,0.00013945,2]
[352987317,1739475083020,-500.0,0.00013945,2]
[352987318,1739475083036,-1032.81,0.00013945,2]
[352987319,1739475083051,-772.21,0.00013945,2]
[352987320,1739475083067,-616.5,0.00013945,2]
[352987321,1739475083083,-500.0,0.00013945,2]
[352987322,1739475083097,-500.0,0.00013945,2]
[352987323,1739475083113,-958.76,0.00013945,2]
[352987324,1739475083127,-500.0,0.00013945,2]
[352987325,1739475083142,-500.0,0.00013945,2]
[352987326,1739475083157,-3172.13,0.00013945,2]
[352987327,1739475083174,-500.0,0.00013945,2]
[352987328,1739475083189,-809.65,0.00013945,2]
[352987329,1739475083202,-6137.61,0.00013945,2]
[352987330,1739475083215,-4803.95,0.00013945,2]
[352987331,1739475083231,-4681.56,0.00013945,2]
[352987332,1739475083243,-1114.6,0.00013945,2]
[352987333,1739475083255,-520.86637,0.00013945,2]
[352987334,1739475083269,-4164.01,0.00013945,2]
[352987335,1739475083284,-1818.75,0.00013945,2]
[352987336,1739475083296,-1915.71,0.00013945,2]
[352987337,1739475083308,-4004.17152938,0.00013945,2]
[352987338,1739475083327,-1446.72847062,0.00013945,2]
[352987339,1739475083340,-366.513499,0.00013945,2]
[352987340,1739475083353,-843.06,0.00013945,2]
[352987341,1739475083366,-500.0,0.00013945,2]
[352987342,1739475083379,-585.01,0.00013945,2]
[352987343,1739475083393,-507.39,0.00013945,2]
[352987344,1739475083406,-3804.92,0.00013945,2]
[352987345,1739475083418,-2750.22,0.00013945,2]
[352987346,1739475083431,-1832.65401562,0.00013945,2]
[352987347,1739475084477,-500.0,0.00013698,2]
[352987348,1739475084495,-500.0,0.00013698,2]
[352987349,1739475084506,-500.0,0.00013698,2]
[352987350,1739475084516,-500.0,0.00013698,2]
[352987351,1739475084527,-819.23845598,0.00013763,2]
[352987352,1739475084538,-840.63,0.0001378,2]
[352987353,1739475084548,-500.0,0.0001378,2]
[352987354,1739475084558,-500.0,0.0001378,2]
[352987355,1739475084569,-500.0,0.0001378,2]
[352987356,1739475084579,-1008.0,0.00013844,2]
[352987357,1739475084590,-393.64451527,0.00013863,2]
[352987358,1739475084603,-446.98548473,0.00013863,2]
[352987359,1739475084612,-53.01451527,0.00013863,2]
[352987360,1739475084642,-531.77533391,0.00013863,2]
[352987361,1739475084652,-500.0,0.00013863,2]
[352987362,1739475084662,-5482.56598438,0.00013945,2]
[352987363,1739475084673,-868.46,0.00013945,2]
[352987364,1739475084684,-1215.14,0.00013945,2]
[352987365,1739475084693,-1615.48,0.00013945,2]
[352987366,1739475084704,-4215.54,0.00013945,2]
[352987367,1739475084715,-2402.62,0.00013945,2]
[352987368,1739475084725,-500.0,0.00013945,2]
[352987369,1739475084735,-913.88,0.00013945,2]
[352987370,1739475084746,-6028.5,0.00013945,2]
[352987371,1739475084756,-6328.65,0.00013945,2]
[352987372,1739475084766,-533.46,0.00013945,2]
[352987373,1739475084777,-2451.5,0.00013945,2]
[352987374,1739475084787,-1688.23,0.00013945,2]
[352987375,1739475084797,-500.0,0.00013945,2]
[352987376,1739475084806,-851.74,0.00013945,2]
[352987377,1739475084816,-831.91,0.00013945,2]
[352987378,1739475084827,-4656.88,0.00013945,2]
[352987379,1739475084836,-715.55,0.00013945,2]
[352987380,1739475084846,-720.55698,0.00013945,2]
[352987381,1739475084856,-500.0,0.00013945,2]
[352987382,1739475084867,-500.0,0.00013945,2]
[352987383,1739475084877,-500.0,0.00013945,2]
[352987384,1739475084887,-1950.56,0.00013945,2]
[352987385,1739475084898,-4132.85,0.00013945,2]
[352987386,1739475084909,-2053.83,0.00013945,2]
[352987387,1739475084919,-1145.89,0.00013945,2]
[352987388,1739475085364,-4586.99,0.00013945,2]
[352987389,1739475085399,-1899.77,0.00013945,2]
[352987390,1739475085418,-743.43,0.00013945,2]
[352987391,1739475085433,-840.63,0.00013945,2]
[352987392,1739475085443,-500.0,0.00013945,2]
[352987393,1739475085452,-302.72,0.00013945,2]
[352987394,1739475085462,-3472.0,0.00013972,2]
[352987395,1739475085471,-1797.1567807,0.00013973,2]
[352987396,1739475085481,-329.90947682,0.00013975,2]
[352987397,1739475085493,-2345.6551657,0.00013981,2]
[352987398,1739475085502,-8049.5953818,0.00013982,2]
[352987399,1739475085511,-150.0,0.00013985,2]
[352987400,1739475085521,-150.0,0.00013985,2]
[352987401,1739475085531,-150.0,0.00013985,2]
[352987402,1739475085539,-150.196,0.00013985,2]
[352987403,1739475085549,-279.878,0.00013985,2]
[352987404,1739475085559,-158.999,0.00013985,2]
[352987405,1739475085568,-250.0,0.00013985,2]
[352987406,1739475085579,-205.904,0.00013985,2]
[352987407,1739475085588,-253.003,0.00013985,2]
[352987408,1739475085598,-154.87,0.00013985,2]
[352987409,1739475085607,-170.484,0.00013985,2]
[352987410,1739475085617,-272.095,0.00013985,2]
[352987411,1739475085626,-31073.99664027,0.0001399,11]
[352987412,1739475085636,-150.0,0.00013992,2]
[352987413,1739475085646,-150.0,0.00013992,2]
[352987414,1739475085656,-150.0,0.00013992,2]
[352987415,1739475085666,-150.0,0.00013992,2]
[352987416,1739475085675,-150.0,0.00013992,2]
[352987417,1739475085686,-8524.2845864,0.00013992,2]
[352987418,1739475085696,-559.08768726,0.00013992,2]
[352987419,1739475085705,-4131.50185489,0.00013992,2]
[352987420,1739475085715,-66867.23490423,0.00013992,2]
[352987421,1739475086470,-894.57,0.00013698,2]
[352987422,1739475086481,-500.0,0.00013698,2]
[352987423,1739475086493,-500.0,0.00013698,2]
[352987424,1739475086503,-894.57,0.0001378,2]
[352987425,1739475086512,-353.28011633,0.0001378,2]
[352987426,1739475086532,-146.71988367,0.0001378,2]
[352987427,1739475086542,-500.0,0.0001378,2]
[352987428,1739475086552,-894.57,0.00013863,2]
[352987429,1739475086562,-894.57,0.00013945,2]
[352987430,1739475086573,-1453.92102255,0.00013992,2]
[352987431,1739475086606,-2002.17327895,0.00013992,2]
[352987432,1739475086630,-500.0,0.00013698,2]
[352987433,1739475086640,-54.49028008,0.00013992,2]
[352987434,1739475086653,-376.01291854,0.00013992,2]
[352987435,1739475139082,800.0,0.00020862,60]
[352987436,1739475221216,1500.0,0.00020862,60]
[352987438,1739475860974,1666.7975,8.973e-05,2]
[352987439,1739475865632,500.0,8.851e-05,2]
[352987440,1739475899527,1329.83677889,0.000142,14]
[352987441,1739475926969,1944.6488,8.973e-05,2]
[352987442,1739475966369,1891.8899,8.836e-05,2]
[352987443,1739475972988,266.6488,8.699e-05,2]
[352987444,1739476003615,562.4685,8.699e-05,2]
[352987447,1739476177583,-202.72,0.00010137,2]
[352987448,1739476177607,-829.11901041,0.00010298,2]
[352987449,1739476177632,-179.16098959,0.00010397,2]
[352987451,1739476232374,-1465.48901041,0.00010397,2]
[352987452,1739476232383,-150.0,0.00010397,2]
[352987453,1739476232392,-992.51098962,0.00010398,2]
[352987454,1739476232403,-696.62044734,0.00010398,2]
[352987455,1739476232481,-175.31921846,0.00010398,2]
[352987456,1739476232491,-150.0,0.00010717,2]
[352987457,1739476232500,-629.68078154,0.00010731,2]
[352987458,1739476232533,-199.43822886,0.00010731,2]
[352987459,1739476232543,-423.47736114,0.00011227,2]
[352987460,1739476232589,-2650.38,0.00011227,2]
[352987461,1739476232600,-689.06759173,0.00011227,2]
[352987462,1739476232609,-300.0,0.00011363,2]
[352987463,1739476232619,-500.0,0.00011364,2]
[352987464,1739476232629,-600.0,0.00011364,2]
[352987465,1739476232638,-600.0,0.00011364,2]
[352987466,1739476232648,-150.0,0.00011397,2]
[352987467,1739476232657,-150.0,0.00011437,2]
[352987468,1739476232666,-1092.36512392,0.00011778,2]
[352987469,1739476232678,-9.72487608,0.00011778,2]
[352987470,1739476232687,-439.7,0.00011909,2]
[352987471,1739476232696,-526.17,0.00011988,2]
[352987472,1739476232706,-1000.0,0.00011988,2]
[352987473,1739476232715,-2550.95261541,0.00012092,2]
[352987474,1739476232727,-1184.17281378,0.00012092,2]
[352987475,1739476232738,-3046.18841979,0.00012092,2]
[352987477,1739476232812,-1504.2803543,0.00012092,2]
[352987481,1739476232842,-15614.40579672,0.00012092,2]
[352987483,1739476232852,-500.0,0.00012136,2]
[352987485,1739476232862,-8443.32,0.00012231,2]
[352987487,1739476232871,-760.88,0.00012265,2]
[352987489,1739476232883,-245.55,0.00012268,2]
[352987491,1739476232892,-150.0,0.00012376,2]
[352987493,1739476232901,-165.64,0.00012418,2]
[352987495,1739476232911,-2000.0,0.00012434,2]
[352987497,1739476232920,-150.0,0.00012451,2]
[352987499,1739476232931,-150.0,0.00012452,2]
[352987501,1739476232940,-150.0,0.00012452,2]
[352987503,1739476232949,-420.0,0.00012482,2]
[352987505,1739476232961,-200.0,0.00012525,2]
[352987507,1739476232970,-271.35,0.00012563,2]
[352987509,1739476232979,-190.29,0.00012563,2]
[352987511,1739476232989,-646.97,0.0001261,2]
[352987513,1739476232998,-1500.0,0.00012635,2]
[352987515,1739476233009,-775.49,0.00012641,2]
[352987517,1739476233019,-1644.65,0.00012661,2]
[352987519,1739476233028,-1622.98,0.0001267,2]
[352987521,1739476233037,-600.0,0.00012734,2]
[352987523,1739476233047,-600.0,0.00012734,2]
[352987525,1739476233057,-1368.22,0.00012792,2]
[352987527,1739476233067,-250.0,0.00012854,2]
[352987529,1739476233077,-775.49,0.00012941,2]
[352987532,1739476233087,-439.94,0.00012941,2]
[352987534,1739476233097,-166.75,0.00013143,2]
[352987536,1739476233107,-8680.51330619,0.00013204,2]
[352987538,1739476233117,-1102.09,0.0001325,2]
[352987540,1739476233126,-381.46214715,0.00013409,2]
[352987542,1739476233136,-381.46214715,0.00013415,2]
[352987543,1739476233146,-648.699313,0.00013422,2]
[352987546,1739476233156,-381.46214715,0.00013446,2]
[352987548,1739476233165,-381.46214715,0.00013446,2]
[352987549,1739476233176,-381.46214715,0.00013455,2]
[352987552,1739476233186,-381.46214715,0.00013459,2]
[352987554,1739476233195,-381.46214715,0.00013462,2]
[352987556,1739476233205,-648.699313,0.00013465,2]
[352987557,1739476233215,-648.699313,0.00013469,2]
[352987558,1739476233224,-381.46214715,0.00013476,2]
[352987559,1739476233233,-1000.0,0.00013487,2]
[352987560,1739476233242,-648.699313,0.00013498,2]
[352987561,1739476233251,-594.23,0.0001353,2]
[352987562,1739476233261,-775.17,0.0001353,2]
[352987563,1739476233270,-255.0,0.00013547,2]
[352987564,1739476233279,-439.94,0.00013562,2]
[352987565,1739476233288,-41545.89536989,0.0001358,2]
[352987566,1739476233300,-54698.51748845,0.0001358,2]
[352987591,1739476237371,-200.0,0.0001198,2]
[352987592,1739476237381,-976.3799632,0.0001358,2]
[352987593,1739476237394,-4291.7545972,0.0001358,2]
[352987594,1739476237448,-348.4116689,0.0001358,2]
[352987796,1739476239430,-2177.04042775,0.0001358,2]
[352987798,1739476239442,-4525.37446843,0.0001358,2]
[352987804,1739476239489,-2073.26692433,0.0001358,2]
[352987807,1739476239501,-1264.80370273,0.0001358,2]
[352987813,1739476239550,-7637.16000456,0.0001358,2]
[352987815,1739476239559,-3516.179,0.00013589,2]
[352987817,1739476239567,-174.189,0.00013589,2]
[352987819,1739476239577,-322.57924131,0.00013598,2]
[352987821,1739476239586,-162.95753213,0.00013598,2]
[352987823,1739476239595,-943.6410597,0.00013598,2]
[352987825,1739476239604,-943.64105968,0.00013639,2]
[352987827,1739476239614,-167.0,0.00013642,2]
[352987829,1739476239623,-943.64105968,0.0001368,2]
[352987831,1739476239633,-166.75,0.00013686,2]
[352987833,1739476239642,-361.62515305,0.00013691,2]
[352987835,1739476239651,-500.0,0.00013698,2]
[352987836,1739476239660,-500.0,0.00013698,2]
[352987838,1739476239670,-500.0,0.00013698,2]
[352987840,1739476239680,-1296.78,0.00013698,2]
[352987843,1739476239690,-848.53,0.00013698,2]
[352987844,1739476239699,-3007.897498,0.00013698,2]
[352987846,1739476239710,-845.83,0.00013698,2]
[352987849,1739476239720,-155.860275,0.00013698,2]
[352987851,1739476239730,-500.0,0.00013698,2]
[352987853,1739476239741,-841.59,0.00013698,2]
[352987855,1739476239751,-500.0,0.00013698,2]
[352987857,1739476239760,-156.273019,0.00013698,2]
[352987859,1739476239770,-500.0,0.00013698,2]
[352987861,1739476239781,-500.0,0.00013698,2]
[352987863,1739476239791,-508.22290325,0.00013698,2]
[352987865,1739476239801,-500.0,0.00013698,2]
[352987867,1739476239811,-500.0,0.00013698,2]
[352987869,1739476239820,-325.90053099,0.00013698,2]
[352987871,1739476239829,-500.0,0.00013698,2]
[352987873,1739476239839,-1925.883623,0.00013698,2]
[352987875,1739476239849,-833.34,0.00013698,2]
[352987877,1739476239858,-530.92,0.00013698,2]
[352987879,1739476239868,-555.83,0.00013698,2]
[352987881,1739476239882,-153.866463,0.00013698,2]
[352987883,1739476239894,-1032.14,0.00013698,2]
[352987885,1739476239903,-500.0,0.00013698,2]
[352987887,1739476239913,-500.0,0.00013698,2]
[352987890,1739476239923,-500.0,0.00013698,2]
[352987893,1739476239933,-500.0,0.00013698,2]
[352987895,1739476239943,-500.0,0.00013698,2]
[352987897,1739476239952,-999.19,0.00013698,2]
[352987899,1739476239962,-500.0,0.00013698,2]
[352987901,1739476239972,-280.585084,0.00013698,2]
[352987903,1739476239983,-500.0,0.00013698,2]
[352987905,1739476239992,-650.49,0.00013698,2]
[352987907,1739476240002,-500.0,0.00013698,2]
[352987909,1739476240012,-500.0,0.00013698,2]
[352987911,1739476240022,-500.0,0.00013698,2]
[352987913,1739476240031,-500.0,0.00013698,2]
[352987915,1739476240040,-500.0,0.00013698,2]
[352987917,1739476240050,-500.0,0.00013698,2]
[352987919,1739476240060,-500.0,0.00013698,2]
[352987921,1739476240069,-866.73,0.00013698,2]
[352987923,1739476240078,-500.0,0.00013698,2]
[352987925,1739476240088,-562.67,0.00013698,2]
[352987927,1739476240098,-342.22507066,0.00013698,2]
[352987929,1739476240107,-500.0,0.00013698,2]
[352987931,1739476240117,-500.0,0.00013698,2]
[352987932,1739476240127,-1200.0,0.00013698,2]
[352987933,1739476240137,-500.0,0.00013698,2]
[352987934,1739476240146,-500.0,0.00013698,2]
[352987935,1739476240155,-530.9,0.00013698,2]
[352987936,1739476240165,-500.0,0.00013698,2]
[352987937,1739476240174,-500.0,0.00013698,2]
[352987938,1739476240183,-375.4290129,0.00013698,2]
[352987939,1739476240193,-500.0,0.00013698,2]
[352987940,1739476240203,-500.82356971,0.00013698,2]
[352987941,1739476240212,-500.0,0.00013698,2]
[352987942,1739476240222,-500.78219175,0.00013698,2]
[352987943,1739476240232,-500.0,0.00013698,2]
[352987944,1739476240241,-500.0,0.00013698,2]
[352987946,1739476240250,-500.0,0.00013698,2]
[352987948,1739476240259,-500.0,0.00013698,2]
[352987950,1739476240268,-506.14970224,0.00013698,2]
[352987952,1739476240278,-648.4,0.00013698,2]
[352987954,1739476240288,-500.0,0.00013698,2]
[352987956,1739476240298,-686.89,0.00013698,2]
[352987958,1739476240307,-500.0,0.00013698,2]
[352987960,1739476240317,-1050.45,0.00013698,2]
[352987962,1739476240326,-664.05,0.00013698,2]
[352987964,1739476240336,-500.0,0.00013698,2]
[352987966,1739476240346,-500.0,0.00013698,2]
[352987968,1739476240355,-500.0,0.00013698,2]
[352987970,1739476240364,-1556.77,0.00013698,2]
[352987972,1739476240373,-500.0,0.00013698,2]
[352987974,1739476240383,-500.0,0.00013698,2]
[352987976,1739476240392,-500.60435142,0.00013698,2]
[352987978,1739476240402,-667.62,0.00013698,2]
[352987980,1739476240412,-500.0,0.00013698,2]
[352987982,1739476240421,-500.0,0.00013698,2]
[352987984,1739476240431,-500.0,0.00013698,2]
[352987986,1739476240440,-500.0,0.00013698,2]
[352987988,1739476240449,-500.0,0.00013698,2]
[352987990,1739476240459,-1222.58,0.00013698,2]
[352987992,1739476240468,-835.75,0.00013698,2]
[352987994,1739476240478,-500.92195474,0.00013698,2]
[352987996,1739476240487,-500.0,0.00013698,2]
[352987998,1739476240496,-500.0,0.00013698,2]
[352988000,1739476240505,-500.0,0.00013698,2]
[352988002,1739476240515,-500.0,0.00013698,2]
[352988004,1739476240524,-500.0,0.00013698,2]
[352988006,1739476240534,-500.0,0.00013698,2]
[352988008,1739476240544,-502.45310772,0.00013698,2]
[352988010,1739476240553,-873.32,0.00013698,2]
[352988012,1739476240563,-1107.84,0.00013698,2]
[352988014,1739476240573,-500.0,0.00013698,2]
[352988016,1739476240583,-912.03,0.00013698,2]
[352988018,1739476240593,-934.85,0.00013698,2]
[352988020,1739476240602,-2893.08,0.00013698,2]
[352988022,1739476240612,-500.0,0.00013698,2]
[352988024,1739476240621,-500.0,0.00013698,2]
[352988026,1739476240631,-500.0,0.00013698,2]
[352988028,1739476240642,-500.0,0.00013698,2]
[352988030,1739476240652,-500.0,0.00013698,2]
[352988032,1739476240661,-2679.48,0.00013698,2]
[352988034,1739476240671,-500.0,0.00013698,2]
[352988036,1739476240681,-500.0,0.00013698,2]
[352988038,1739476240691,-602.38,0.00013698,2]
[352988041,1739476240701,-1171.53,0.00013698,2]
[352988043,1739476240711,-500.0,0.00013698,2]
[352988044,1739476240720,-500.0,0.00013698,2]
[352988047,1739476240730,-500.0,0.00013698,2]
[352988048,1739476240739,-1201.28,0.00013698,2]
[352988051,1739476240749,-734.24,0.00013698,2]
[352988053,1739476240759,-509.85918034,0.00013698,2]
[352988055,1739476240768,-500.0,0.00013698,2]
[352988057,1739476240778,-500.0,0.00013698,2]
[352988059,1739476240787,-500.0,0.00013698,2]
[352988061,1739476240797,-1012.48,0.00013698,2]
[352988063,1739476240806,-501.15305456,0.00013698,2]
[352988065,1739476240816,-500.0,0.00013698,2]
[352988067,1739476240825,-500.0,0.00013698,2]
[352988069,1739476240835,-2613.58,0.00013698,2]
[352988071,1739476240844,-500.0,0.00013698,2]
[352988073,1739476240854,-958.51,0.00013698,2]
[352988075,1739476240863,-194.1445702,0.00013698,2]
[352988077,1739476240872,-500.0,0.00013698,2]
[352988079,1739476240885,-280.585061,0.00013698,2]
[352988081,1739476240895,-500.0,0.00013698,2]
[352988083,1739476240904,-2163.31,0.00013698,2]
[352988085,1739476240913,-653.07,0.00013698,2]
[352988086,1739476240923,-1290.24,0.00013698,2]
[352988088,1739476240933,-500.0,0.00013698,2]
[352988090,1739476240943,-500.0,0.00013698,2]
[352988092,1739476240952,-1052.9,0.00013698,2]
[352988094,1739476240962,-615.52,0.00013698,2]
[352988096,1739476240972,-500.0,0.00013698,2]
[352988098,1739476240981,-500.0,0.00013698,2]
[352988100,1739476240991,-500.0,0.00013698,2]
[352988102,1739476241000,-500.0,0.00013698,2]
[352988104,1739476241013,-819.41,0.00013698,2]
[352988107,1739476241022,-1021.89,0.00013698,2]
[352988109,1739476241032,-500.0,0.00013698,2]
[352988111,1739476241041,-2092.06,0.00013698,2]
[352988113,1739476241050,-502.49,0.00013698,2]
[352988115,1739476241060,-949.17,0.00013698,2]
[352988117,1739476241069,-500.0,0.00013698,2]
[352988119,1739476241078,-809.98,0.00013698,2]
[352988121,1739476241087,-1534.08,0.00013698,2]
[352988123,1739476241097,-500.0,0.00013698,2]
[352988125,1739476241107,-500.0,0.00013698,2]
[352988127,1739476241116,-1497.32,0.00013698,2]
[352988129,1739476241126,-500.0,0.00013698,2]
[352988131,1739476241135,-500.0,0.00013698,2]
[352988133,1739476241144,-2590.29,0.00013698,2]
[352988135,1739476241154,-698.98,0.00013698,2]
[352988137,1739476241163,-598.03,0.00013698,2]
[352988139,1739476241172,-674.72,0.00013698,2]
[352988141,1739476241182,-1390.36,0.00013698,2]
[352988143,1739476241192,-1440.17,0.00013698,2]
[352988145,1739476241201,-504.20457054,0.00013698,2]
[352988147,1739476241211,-620.3,0.00013698,2]
[352988149,1739476241220,-1673.9,0.00013698,2]
[352988151,1739476241230,-500.0,0.00013698,2]
[352988153,1739476241239,-812.55,0.00013698,2]
[352988155,1739476241248,-781.4,0.00013698,2]
[352988157,1739476241257,-500.0,0.00013698,2]
[352988159,1739476241267,-540.43,0.00013698,2]
[352988161,1739476241276,-2090.23,0.00013698,2]
[352988163,1739476241286,-560.27,0.00013698,2]
[352988165,1739476241295,-500.0,0.00013698,2]
[352988167,1739476241305,-662.05,0.00013698,2]
[352988169,1739476241314,-500.0,0.00013698,2]
[352988171,1739476241324,-1780.88,0.00013698,2]
[352988173,1739476241333,-672.4,0.00013698,2]
[352988175,1739476241342,-819.56,0.00013698,2]
[352988177,1739476241352,-1282.01,0.00013698,2]
[352988179,1739476241361,-500.0,0.00013698,2]
[352988181,1739476241370,-500.0,0.00013698,2]
[352988182,1739476241379,-500.0,0.00013698,2]
[352988185,1739476241389,-500.0,0.00013698,2]
[352988187,1739476241399,-2456.28,0.00013698,2]
[352988189,1739476241408,-500.0,0.00013698,2]
[352988191,1739476241418,-506.72028729,0.00013698,2]
[352988193,1739476241427,-2900.72,0.00013698,2]
[352988195,1739476241436,-500.0,0.00013698,2]
[352988197,1739476241445,-2198.45,0.00013698,2]
[352988199,1739476241455,-500.0,0.00013698,2]
[352988201,1739476241463,-500.0,0.00013698,2]
[352988203,1739476241473,-500.0,0.00013698,2]
[352988204,1739476241482,-879.24,0.00013698,2]
[352988207,1739476241492,-500.0,0.00013698,2]
[352988208,1739476241502,-501.16319771,0.00013698,2]
[352988210,1739476241511,-500.0,0.00013698,2]
[352988212,1739476241522,-500.0,0.00013698,2]
[352988214,1739476241531,-1858.76,0.00013698,2]
[352988216,1739476241541,-1177.0,0.00013698,2]
[352988218,1739476241551,-500.0,0.00013698,2]
[352988220,1739476241560,-540.46976453,0.00013698,2]
[352988222,1739476241570,-500.0,0.00013698,2]
[352988224,1739476241580,-1056.4291312,0.00013698,2]
[352988228,1739476241604,-210.0908688,0.00013698,2]
[352988230,1739476241613,-2323.23,0.00013698,2]
[352988232,1739476241623,-599.88,0.00013698,2]
[352988234,1739476241633,-217.40905154,0.00013698,2]
[352988236,1739476241642,-500.0,0.00013698,2]
[352988238,1739476241652,-500.0,0.00013698,2]
[352988240,1739476241661,-500.0,0.00013698,2]
[352988242,1739476241671,-2010.79,0.00013698,2]
[352988244,1739476241680,-1350.79,0.00013698,2]
[352988246,1739476241689,-500.0,0.00013698,2]
[352988248,1739476241699,-2147.93,0.00013698,2]
[352988250,1739476241708,-1309.87,0.00013698,2]
[352988252,1739476241717,-1216.35,0.00013698,2]
[352988254,1739476241727,-500.0,0.00013698,2]
[352988256,1739476241736,-500.0,0.00013698,2]
[352988258,1739476241746,-500.0,0.00013698,2]
[352988260,1739476241755,-500.0,0.00013698,2]
[352988262,1739476241764,-576.87,0.00013698,2]
[352988264,1739476241773,-500.0,0.00013698,2]
[352988266,1739476241783,-1183.65,0.00013698,2]
[352988268,1739476241792,-500.0,0.00013698,2]
[352988270,1739476241802,-500.0,0.00013698,2]
[352988272,1739476241811,-1742.23,0.00013698,2]
[352988274,1739476241821,-930.56,0.00013698,2]
[352988276,1739476241830,-500.0,0.00013698,2]
[352988278,1739476241840,-500.0,0.00013698,2]
[352988280,1739476241849,-898.17,0.00013698,2]
[352988282,1739476241858,-1930.48,0.00013698,2]
[352988284,1739476241869,-500.0,0.00013698,2]
[352988286,1739476241879,-809.43,0.00013698,2]
[352988288,1739476241890,-1416.03,0.00013698,2]
[352988290,1739476241900,-500.0,0.00013698,2]
[352988292,1739476241909,-500.0,0.00013698,2]
[352988294,1739476241918,-1111.53,0.00013698,2]
[352988296,1739476241928,-252.77961722,0.00013698,2]
[352988298,1739476241938,-1303.87,0.00013698,2]
[352988300,1739476241947,-1074.31,0.00013698,2]
[352988302,1739476241956,-500.0,0.00013698,2]
[352988304,1739476241968,-519.25759795,0.00013698,2]
[352988306,1739476241977,-500.0,0.00013698,2]
[352988308,1739476241987,-500.0,0.00013698,2]
[352988310,1739476241996,-888.64351244,0.00013698,2]
[352988318,1739476242061,-55.86648756,0.00013698,2]
[352988320,1739476242070,-500.0,0.00013698,2]
[352988322,1739476242080,-1536.7,0.00013698,2]
[352988324,1739476242089,-1110.79,0.00013698,2]
[352988326,1739476242098,-500.0,0.00013698,2]
[352988328,1739476242107,-500.0,0.00013698,2]
[352988330,1739476242117,-529.41,0.00013698,2]
[352988332,1739476242127,-500.0,0.00013698,2]
[352988333,1739476242136,-566.43810553,0.00013698,2]
[352988336,1739476242148,-478.075,0.00013698,2]
[352988339,1739476242159,-477.141665,0.00013698,2]
[352988473,1739476243383,-1028.23862257,0.00013308,2]
[352988474,1739476243392,-343.33522947,0.00013698,2]
[352988475,1739476243401,-500.0,0.00013698,2]
[352988476,1739476243410,-500.0,0.00013698,2]
[352988477,1739476243419,-2071.79,0.00013698,2]
[352988478,1739476243428,-617.13,0.00013698,2]
[352988479,1739476243437,-500.0,0.00013698,2]